fUST/lending_fUST_20240525
["ID","MTS","AMOUNT","RATE_DAILY","PERIOD"]
[327877157,1716574234659,-444.59173156,0.00019388,2]
[327877159,1716574234674,-269.24912565,0.00019388,2]
[327877161,1716574234685,-569.0,0.00019388,2]
[327877163,1716574234699,-13717.15914279,0.00019388,2]
[327877165,1716574234708,-10516.31440065,0.00019389,2]
[327877167,1716574234718,-2160.70675899,0.00019389,2]
[327877315,1716574239714,-3329.81926187,0.00019389,2]
[327877318,1716574239726,-3792.79999999,0.00019389,2]
[327877320,1716574239738,-25679.05415094,0.00019389,2]
[327877322,1716574239747,-299.65050621,0.00019441,2]
[327877324,1716574239758,-2887.51610276,0.00019443,2]
[327877326,1716574239768,-263.84635714,0.00019899,2]
[327877328,1716574239777,-159.36,0.00019982,3]
[327877330,1716574239787,-478.12,0.00019982,3]
[327877332,1716574239798,-500.0,0.00019991,2]
[327877334,1716574239809,-500.0,0.00019991,2]
[327877336,1716574239819,-367.87739239,0.00019991,2]
[327877338,1716574239828,-495.11321578,0.00019991,2]
[327877340,1716574239837,-500.0,0.00019991,2]
[327877342,1716574239846,-500.0,0.00019991,2]
[327877344,1716574239856,-340.81773271,0.00019991,2]
[327877346,1716574239864,-500.0,0.00019991,2]
[327877348,1716574239874,-500.0,0.00019991,2]
[327877350,1716574239887,-500.0,0.00019991,2]
[327877352,1716574239897,-500.0,0.00019991,2]
[327877354,1716574239906,-500.0,0.00019991,2]
[327877356,1716574239916,-500.0,0.00019991,2]
[327877358,1716574239925,-500.0,0.00019991,2]
[327877360,1716574239936,-562.20531403,0.00019991,2]
[327877362,1716574239945,-500.0,0.00019991,2]
[327877364,1716574239955,-500.0,0.00019991,2]
[327877366,1716574239965,-500.0,0.00019991,2]
[327877368,1716574239974,-500.0,0.00019991,2]
[327877370,1716574239984,-500.0,0.00019991,2]
[327877372,1716574239993,-500.0,0.00019991,2]
[327877374,1716574240005,-287.47571341,0.00019991,2]
[327877376,1716574240015,-500.0,0.00019991,2]
[327877378,1716574240024,-500.0,0.00019991,2]
[327877380,1716574240033,-500.0,0.00019991,2]
[327877381,1716574240043,-500.0,0.00019991,2]
[327877383,1716574240052,-500.0,0.00019991,2]
[327877385,1716574240061,-500.0,0.00019991,2]
[327877386,1716574240070,-500.0,0.00019991,2]
[327877388,1716574240080,-500.0,0.00019991,2]
[327877389,1716574240089,-500.0,0.00019991,2]
[327877390,1716574240099,-500.0,0.00019991,2]
[327877391,1716574240109,-500.0,0.00019991,2]
[327877392,1716574240118,-500.0,0.00019991,2]
[327877393,1716574240128,-500.0,0.00019991,2]
[327877394,1716574240138,-500.0,0.00019991,2]
[327877395,1716574240147,-500.0,0.00019991,2]
[327877396,1716574240157,-500.0,0.00019991,2]
[327877397,1716574240167,-500.0,0.00019991,2]
[327877398,1716574240177,-500.0,0.00019991,2]
[327877399,1716574240186,-500.0,0.00019991,2]
[327877400,1716574240196,-500.0,0.00019991,2]
[327877401,1716574240206,-587.22466664,0.00019991,2]
[327877402,1716574240216,-500.0,0.00019991,2]
[327877403,1716574240225,-500.0,0.00019991,2]
[327877404,1716574240235,-500.0,0.00019991,2]
[327877405,1716574240245,-500.0,0.00019991,2]
[327877406,1716574240255,-500.0,0.00019991,2]
[327877407,1716574240265,-500.0,0.00019991,2]
[327877408,1716574240275,-500.0,0.00019991,2]
[327877409,1716574240284,-500.0,0.00019991,2]
[327877410,1716574240294,-500.0,0.00019991,2]
[327877411,1716574240303,-500.0,0.00019991,2]
[327877412,1716574240312,-181.08892415,0.0002,2]
[327877413,1716574240322,-22859.27879206,0.0002,2]
[327877414,1716574240331,-527.39256429,0.0002,4]
[327877415,1716574240341,-6868.39532604,0.0002,5]
[327877417,1716574240350,-155.12780589,0.00020276,2]
[327877418,1716574240360,-397.75355687,0.00020276,2]
[327877419,1716574240369,-57915.01133476,0.00020277,2]
[327877420,1716574240379,-154.9690062,0.00020277,2]
[327877421,1716574240388,-2031.9,0.00020279,2]
[327877422,1716574240398,-1154.88110186,0.00020279,2]
[327877423,1716574240408,-10849.01945741,0.00020279,2]
[327877424,1716574240418,-288.47812701,0.00020279,2]
[327877425,1716574240427,-189.96457126,0.00020279,2]
[327877426,1716574240437,-155.42417009,0.00020279,2]
[327877427,1716574240446,-154.98450155,0.00020279,2]
[327877428,1716574240456,-1501.15127595,0.00020279,2]
[327877429,1716574240465,-274.46479269,0.00020279,2]
[327877430,1716574240474,-154.92253873,0.00020279,2]
[327877431,1716574240483,-552.52018665,0.00020279,2]
[327877432,1716574240493,-155.19460879,0.00020279,2]
[327877433,1716574240504,-167.78261196,0.0002028,2]
[327877434,1716574240513,-350.07606363,0.00020281,2]
[327877435,1716574240522,-156.45299204,0.00020281,2]
[327877436,1716574240532,-1691.82460779,0.00020282,2]
[327877437,1716574240542,-417.09999354,0.00020345,2]
[327877438,1716574240552,-315.84581765,0.00020907,2]
[327877439,1716574240561,-1849.28044218,0.00020907,2]
[327877440,1716574240571,-155.36004736,0.00020907,2]
[327877441,1716574240580,-308.44915334,0.00020907,2]
[327877442,1716574240589,-835.50091713,0.00020907,2]
[327877443,1716574240599,-284.39174156,0.00020908,2]
[327877444,1716574240608,-355.03147672,0.00020908,2]
[327877445,1716574240618,-690.19911136,0.00020908,2]
[327877446,1716574240627,-154.82968734,0.00020908,2]
[327877447,1716574240637,-1450.80884896,0.00020908,10]
[327877448,1716574240646,-513.4844886,0.00020908,2]
[327877449,1716574240656,-942.26758453,0.00020909,2]
[327877450,1716574240665,-159.43807008,0.00020909,2]
[327877451,1716574240675,-604.85735798,0.00021,2]
[327877452,1716574240685,-4693.98893964,0.00021,2]
[327877453,1716574240694,-2067.43118537,0.00021,2]
[327877454,1716574240704,-318.72,0.00021352,3]
[327877455,1716574240714,-167.19533,0.00021918,2]
[327877456,1716574240724,-417.09999354,0.00022451,2]
[327877457,1716574240733,-151.0,0.00023701,5]
[327877458,1716574240743,-492.62981358,0.000239,2]
[327877459,1716574240754,-610.21929,0.00024384,2]
[327877460,1716574240763,-167.19533,0.00024482,2]
[327877461,1716574240773,-417.09999354,0.00024557,2]
[327877462,1716574240782,-986.45755068,0.00024645,2]
[327877463,1716574240791,-402.29,0.00024657,2]
[327877464,1716574240805,-500.0,0.00024657,2]
[327877465,1716574240814,-500.0,0.00024657,2]
[327877466,1716574240824,-500.0,0.00024657,2]
[327877467,1716574240833,-620.41,0.00024657,2]
[327877468,1716574240843,-500.0,0.00024657,2]
[327877469,1716574240852,-500.0,0.00024657,2]
[327877470,1716574240861,-500.0,0.00024657,2]
[327877471,1716574240870,-500.0,0.00024657,2]
[327877472,1716574240879,-500.0,0.00024657,2]
[327877473,1716574240890,-500.0,0.00024657,2]
[327877474,1716574240899,-500.0,0.00024657,2]
[327877475,1716574240908,-288.08997454,0.00024657,2]
[327877476,1716574240918,-250.0,0.00024657,2]
[327877477,1716574240927,-500.0,0.00024657,2]
[327877478,1716574240937,-495.12182581,0.00024657,2]
[327877479,1716574240946,-500.0,0.00024657,2]
[327877480,1716574240956,-500.0,0.00024657,2]
[327877481,1716574240965,-500.0,0.00024657,2]
[327877482,1716574240974,-500.0,0.00024657,2]
[327877483,1716574240984,-500.0,0.00024657,2]
[327877484,1716574240993,-500.0,0.00024657,2]
[327877485,1716574241003,-226.99977723,0.00024657,2]
[327877486,1716574241012,-500.0,0.00024657,2]
[327877487,1716574241021,-500.0,0.00024657,2]
[327877488,1716574241030,-500.0,0.00024657,2]
[327877489,1716574241039,-500.0,0.00024657,2]
[327877490,1716574241049,-470.80231705,0.00024657,2]
[327877491,1716574241058,-500.0,0.00024657,2]
[327877492,1716574241067,-500.0,0.00024657,2]
[327877493,1716574241076,-500.0,0.00024657,2]
[327877494,1716574241087,-500.0,0.00024657,2]
[327877495,1716574241096,-500.0,0.00024657,2]
[327877496,1716574241106,-500.0,0.00024657,2]
[327877497,1716574241116,-500.0,0.00024657,2]
[327877498,1716574241125,-485.8,0.00024657,2]
[327877499,1716574241135,-500.0,0.00024657,2]
[327877500,1716574241144,-500.0,0.00024657,2]
[327877501,1716574241154,-500.0,0.00024657,2]
[327877502,1716574241164,-500.0,0.00024657,2]
[327877503,1716574241174,-432.07112195,0.00024657,2]
[327877504,1716574241183,-500.0,0.00024657,2]
[327877505,1716574241193,-500.0,0.00024657,2]
[327877506,1716574241203,-500.0,0.00024657,2]
[327877507,1716574241212,-500.0,0.00024657,2]
[327877508,1716574241222,-500.0,0.00024657,2]
[327877509,1716574241232,-500.0,0.00024657,2]
[327877510,1716574241243,-500.0,0.00024657,2]
[327877511,1716574241253,-500.0,0.00024657,2]
[327877512,1716574241263,-500.0,0.00024657,2]
[327877513,1716574241272,-500.0,0.00024657,2]
[327877514,1716574241283,-691.71,0.00024657,2]
[327877515,1716574241292,-500.0,0.00024657,2]
[327877516,1716574241302,-500.0,0.00024657,2]
[327877517,1716574241312,-500.0,0.00024657,2]
[327877518,1716574241321,-500.0,0.00024657,2]
[327877519,1716574241331,-500.0,0.00024657,2]
[327877520,1716574241340,-587.64,0.00024657,2]
[327877521,1716574241350,-210.3726132,0.00024657,2]
[327877522,1716574241359,-500.0,0.00024657,2]
[327877523,1716574241369,-500.0,0.00024657,2]
[327877524,1716574241379,-500.0,0.00024657,2]
[327877525,1716574241539,-500.0,0.00024657,2]
[327877526,1716574241550,-500.0,0.00024657,2]
[327877527,1716574241560,-500.0,0.00024657,2]
[327877528,1716574241570,-500.0,0.00024657,2]
[327877529,1716574241580,-500.0,0.00024657,2]
[327877530,1716574241589,-500.0,0.00024657,2]
[327877531,1716574241599,-500.0,0.00024657,2]
[327877532,1716574241609,-634.77,0.00024657,2]
[327877533,1716574241619,-500.0,0.00024657,2]
[327877534,1716574241629,-500.0,0.00024657,2]
[327877535,1716574241638,-500.0,0.00024657,2]
[327877536,1716574241649,-500.0,0.00024657,2]
[327877537,1716574241659,-500.0,0.00024657,2]
[327877538,1716574241668,-500.0,0.00024657,2]
[327877539,1716574241678,-478.10501286,0.00024657,2]
[327877540,1716574241689,-500.0,0.00024657,2]
[327877541,1716574241698,-500.0,0.00024657,2]
[327877542,1716574241709,-500.0,0.00024657,2]
[327877543,1716574241719,-500.0,0.00024657,2]
[327877544,1716574241728,-661.81,0.00024657,2]
[327877545,1716574241738,-500.0,0.00024657,2]
[327877546,1716574241749,-500.0,0.00024657,2]
[327877547,1716574241760,-500.0,0.00024657,2]
[327877548,1716574241770,-410.84,0.00024657,2]
[327877549,1716574241780,-500.0,0.00024657,2]
[327877550,1716574241789,-500.0,0.00024657,2]
[327877551,1716574241800,-500.0,0.00024657,2]
[327877552,1716574241815,-500.0,0.00024657,2]
[327877553,1716574241825,-500.0,0.00024657,2]
[327877554,1716574241836,-500.0,0.00024657,2]
[327877555,1716574241847,-500.0,0.00024657,2]
[327877556,1716574241857,-626.52,0.00024657,2]
[327877557,1716574241867,-2846.28,0.00024657,2]
[327877558,1716574241876,-500.0,0.00024657,2]
[327877559,1716574241887,-808.03,0.00024657,2]
[327877560,1716574241897,-500.0,0.00024657,2]
[327877561,1716574241907,-3577.07,0.00024657,2]
[327877562,1716574241916,-500.0,0.00024657,2]
[327877563,1716574241926,-500.0,0.00024657,2]
[327877564,1716574241936,-500.0,0.00024657,2]
[327877565,1716574241945,-500.0,0.00024657,2]
[327877566,1716574241955,-2195.32,0.00024657,2]
[327877567,1716574241965,-2195.32,0.00024657,3]
[327877568,1716574241975,-2195.32,0.00024657,4]
[327877569,1716574241984,-2195.32,0.00024657,5]
[327877570,1716574241994,-2195.32,0.00024657,6]
[327877571,1716574242004,-2195.32,0.00024657,7]
[327877572,1716574242014,-2195.32,0.00024657,8]
[327877573,1716574242024,-523.98,0.00024657,2]
[327877574,1716574242034,-2195.32,0.00024657,9]
[327877575,1716574242044,-506.88,0.00024657,2]
[327877576,1716574242054,-1250.13,0.00024657,2]
[327877577,1716574242063,-500.0,0.00024657,2]
[327877578,1716574242072,-500.0,0.00024657,2]
[327877579,1716574242082,-500.0,0.00024657,2]
[327877580,1716574242092,-500.0,0.00024657,2]
[327877581,1716574242101,-500.0,0.00024657,2]
[327877582,1716574242111,-549.44,0.00024657,2]
[327877583,1716574242120,-553.03,0.00024657,2]
[327877584,1716574242130,-500.0,0.00024657,2]
[327877585,1716574242139,-500.0,0.00024657,2]
[327877586,1716574242149,-1250.38,0.00024657,2]
[327877587,1716574242159,-504.09,0.00024657,2]
[327877588,1716574242169,-500.0,0.00024657,2]
[327877589,1716574242178,-500.0,0.00024657,2]
[327877590,1716574242187,-626.0,0.00024657,2]
[327877591,1716574242197,-324.64116822,0.00024657,2]
[327877592,1716574242207,-500.0,0.00024657,2]
[327877593,1716574242216,-500.0,0.00024657,2]
[327877594,1716574242226,-839.12,0.00024657,2]
[327877595,1716574242235,-4212.77,0.00024657,2]
[327877596,1716574242245,-500.0,0.00024657,2]
[327877597,1716574242256,-500.0,0.00024657,2]
[327877598,1716574242265,-500.0,0.00024657,2]
[327877599,1716574242275,-600.6288191,0.00024657,2]
[327877600,1716574242284,-500.0,0.00024657,2]
[327877601,1716574242293,-613.44,0.00024657,2]
[327877602,1716574242302,-4510.73,0.00024657,2]
[327877603,1716574242313,-500.0,0.00024657,3]
[327877604,1716574242322,-500.0,0.00024657,3]
[327877605,1716574242332,-500.0,0.00024657,3]
[327877606,1716574242341,-500.0,0.00024657,3]
[327877607,1716574242351,-500.0,0.00024657,3]
[327877608,1716574242360,-1401.54,0.00024657,2]
[327877609,1716574242369,-500.0,0.00024657,3]
[327877610,1716574242379,-500.0,0.00024657,3]
[327877611,1716574242388,-401.08157754,0.00024657,3]
[327877612,1716574242397,-500.0,0.00024657,2]
[327877613,1716574242406,-500.0,0.00024657,2]
[327877614,1716574242416,-367.27924875,0.00024657,2]
[327877615,1716574242425,-500.0,0.00024657,2]
[327877616,1716574242434,-500.0,0.00024657,2]
[327877617,1716574242443,-500.0,0.00024657,2]
[327877618,1716574242453,-500.0,0.00024657,2]
[327877619,1716574242462,-2195.32,0.0002493,10]
[327877620,1716574242471,-2195.32,0.0002493,11]
[327877621,1716574242480,-456.56725319,0.00024931,3]
[327877622,1716574242489,-500.0,0.00024931,3]
[327877623,1716574242499,-500.0,0.00024931,3]
[327877624,1716574242510,-500.0,0.00024931,3]
[327877625,1716574242519,-199.42606254,0.00024931,3]
[327877626,1716574242528,-500.0,0.00024931,3]
[327877627,1716574242537,-500.0,0.00024931,3]
[327877628,1716574242546,-250.0,0.00024931,3]
[327877629,1716574242555,-500.0,0.00024931,3]
[327877630,1716574242564,-500.0,0.00024931,3]
[327877631,1716574242574,-500.0,0.00024931,3]
[327877632,1716574242584,-500.0,0.00024931,3]
[327877633,1716574242593,-500.0,0.00024931,3]
[327877634,1716574242603,-500.0,0.00024931,3]
[327877635,1716574242612,-500.0,0.00024931,3]
[327877636,1716574242621,-500.0,0.00024931,3]
[327877637,1716574242631,-507.79,0.00024931,3]
[327877638,1716574242640,-500.0,0.00024931,3]
[327877639,1716574242649,-500.0,0.00024931,3]
[327877640,1716574242659,-500.0,0.00024931,3]
[327877641,1716574242668,-500.0,0.00024931,3]
[327877642,1716574242678,-500.0,0.00024931,3]
[327877643,1716574242687,-500.0,0.00024931,3]
[327877644,1716574242697,-500.0,0.00024931,3]
[327877645,1716574242707,-500.0,0.00024931,3]
[327877646,1716574242717,-500.0,0.00024931,3]
[327877647,1716574242726,-500.0,0.00024931,2]
[327877648,1716574242735,-500.0,0.00024931,3]
[327877649,1716574242744,-500.0,0.00024931,3]
[327877650,1716574242754,-500.0,0.00024931,3]
[327877651,1716574242764,-500.0,0.00024931,3]
[327877652,1716574242773,-500.0,0.00024931,3]
[327877653,1716574242783,-500.0,0.00024931,3]
[327877654,1716574242792,-691.71,0.00024931,3]
[327877655,1716574242807,-500.0,0.00024931,3]
[327877656,1716574242817,-500.0,0.00024931,3]
[327877657,1716574242826,-500.0,0.00024931,3]
[327877658,1716574242836,-500.0,0.00024931,3]
[327877659,1716574242847,-587.64,0.00024931,3]
[327877660,1716574242856,-500.0,0.00024931,3]
[327877661,1716574242866,-500.0,0.00024931,3]
[327877662,1716574242876,-500.0,0.00024931,3]
[327877663,1716574242886,-500.0,0.00024931,3]
[327877664,1716574242896,-500.0,0.00024931,3]
[327877665,1716574242906,-500.0,0.00024931,3]
[327877666,1716574242915,-500.0,0.00024931,3]
[327877667,1716574242925,-634.77,0.00024931,3]
[327877668,1716574242934,-500.0,0.00024931,3]
[327877669,1716574242945,-500.0,0.00024931,3]
[327877670,1716574242954,-500.0,0.00024931,3]
[327877671,1716574242964,-500.0,0.00024931,3]
[327877672,1716574242973,-500.0,0.00024931,3]
[327877673,1716574242983,-500.0,0.00024931,3]
[327877674,1716574242992,-500.0,0.00024931,3]
[327877675,1716574243002,-500.0,0.00024931,3]
[327877676,1716574243012,-661.81,0.00024931,3]
[327877677,1716574243022,-500.0,0.00024931,3]
[327877678,1716574243032,-500.0,0.00024931,3]
[327877679,1716574243042,-500.0,0.00024931,3]
[327877680,1716574243051,-500.0,0.00024931,3]
[327877681,1716574243061,-500.0,0.00024931,3]
[327877682,1716574243070,-500.0,0.00024931,3]
[327877683,1716574243080,-351.2,0.00024931,3]
[327877684,1716574243090,-500.0,0.00024931,3]
[327877685,1716574243099,-500.0,0.00024931,3]
[327877686,1716574243109,-2846.28,0.00024931,3]
[327877687,1716574243118,-808.03,0.00024931,3]
[327877688,1716574243128,-500.0,0.00024931,3]
[327877689,1716574243138,-3577.07,0.00024931,3]
[327877690,1716574243147,-250.92836181,0.00024931,3]
[327877691,1716574243157,-500.0,0.00024931,3]
[327877692,1716574243166,-500.0,0.00024931,3]
[327877693,1716574243176,-506.88,0.00024931,3]
[327877694,1716574243186,-1250.13,0.00024931,3]
[327877695,1716574243196,-500.0,0.00024931,3]
[327877696,1716574243205,-500.0,0.00024931,3]
[327877697,1716574243214,-500.0,0.00024931,3]
[327877698,1716574243223,-549.44,0.00024931,3]
[327877699,1716574243232,-553.03,0.00024931,3]
[327877700,1716574243241,-252.94,0.00024931,3]
[327877701,1716574243250,-1250.38,0.00024931,3]
[327877702,1716574243261,-504.09,0.00024931,3]
[327877703,1716574243270,-500.0,0.00024931,3]
[327877704,1716574243279,-500.0,0.00024931,3]
[327877707,1716574243288,-626.0,0.00024931,3]
[327877710,1716574243297,-500.0,0.00024931,3]
[327877712,1716574243306,-500.0,0.00024931,3]
[327877714,1716574243315,-839.12,0.00024931,3]
[327877715,1716574243324,-4212.77,0.00024931,3]
[327877716,1716574243333,-500.0,0.00024931,3]
[327877717,1716574243343,-500.0,0.00024931,3]
[327877718,1716574243352,-500.0,0.00024931,3]
[327877719,1716574243361,-613.44,0.00024931,3]
[327877720,1716574243370,-4510.73,0.00024931,3]
[327877721,1716574243379,-1401.54,0.00024931,3]
[327877722,1716574243387,-366.66027768,0.00024931,3]
[327877723,1716574243396,-500.0,0.00024931,3]
[327877724,1716574243405,-500.0,0.00024931,3]
[327877725,1716574243414,-197.88,0.00024931,3]
[327877726,1716574243423,-500.0,0.00024931,3]
[327877727,1716574243433,-13369.62058427,0.00025,2]
[327877728,1716574243442,-155.61513001,0.00025,14]
[327877729,1716574243451,-401.04849883,0.00025,2]
[327877730,1716574243460,-2195.32,0.00025204,12]
[327877731,1716574243470,-400.0,0.00025205,4]
[327877732,1716574243478,-500.0,0.00025205,4]
[327877733,1716574243487,-500.0,0.00025205,4]
[327877734,1716574243496,-250.0,0.00025205,4]
[327877735,1716574243507,-500.0,0.00025205,4]
[327877736,1716574243516,-500.0,0.00025205,4]
[327877737,1716574243525,-500.0,0.00025205,4]
[327877738,1716574243535,-500.0,0.00025205,4]
[327877739,1716574243544,-382.73119001,0.00025205,4]
[327877740,1716574243553,-500.0,0.00025205,4]
[327877741,1716574243563,-500.0,0.00025205,4]
[327877742,1716574243573,-500.0,0.00025205,4]
[327877743,1716574243582,-500.0,0.00025205,4]
[327877744,1716574243591,-500.0,0.00025205,4]
[327877745,1716574243600,-500.0,0.00025205,4]
[327877746,1716574243609,-500.0,0.00025205,4]
[327877747,1716574243619,-500.0,0.00025205,4]
[327877748,1716574243628,-500.0,0.00025205,4]
[327877749,1716574243637,-500.0,0.00025205,4]
[327877750,1716574243647,-691.71,0.00025205,4]
[327877751,1716574243656,-500.0,0.00025205,4]
[327877752,1716574243665,-500.0,0.00025205,4]
[327877753,1716574243675,-500.0,0.00025205,4]
[327877754,1716574243684,-500.0,0.00025205,4]
[327877755,1716574243693,-587.64,0.00025205,4]
[327877756,1716574243702,-500.0,0.00025205,4]
[327877757,1716574243711,-500.0,0.00025205,4]
[327877758,1716574243720,-500.0,0.00025205,4]
[327877759,1716574243730,-500.0,0.00025205,4]
[327877760,1716574243740,-500.0,0.00025205,4]
[327877761,1716574243750,-634.77,0.00025205,4]
[327877762,1716574243760,-500.0,0.00025205,4]
[327877763,1716574243771,-500.0,0.00025205,4]
[327877764,1716574243781,-500.0,0.00025205,4]
[327877765,1716574243791,-500.0,0.00025205,4]
[327877766,1716574243803,-500.0,0.00025205,4]
[327877767,1716574243819,-661.81,0.00025205,4]
[327877768,1716574243829,-500.0,0.00025205,4]
[327877769,1716574243839,-500.0,0.00025205,4]
[327877770,1716574243850,-500.0,0.00025205,4]
[327877771,1716574243860,-293.43,0.00025205,4]
[327877772,1716574243870,-500.0,0.00025205,4]
[327877773,1716574243880,-500.0,0.00025205,4]
[327877774,1716574243894,-2846.28,0.00025205,4]
[327877775,1716574243903,-808.03,0.00025205,4]
[327877776,1716574243914,-3577.07,0.00025205,4]
[327877777,1716574243924,-500.0,0.00025205,4]
[327877778,1716574243933,-500.0,0.00025205,4]
[327877779,1716574243943,-506.88,0.00025205,4]
[327877780,1716574243953,-1250.13,0.00025205,4]
[327877781,1716574243962,-500.0,0.00025205,4]
[327877782,1716574243972,-500.0,0.00025205,4]
[327877783,1716574243982,-549.44,0.00025205,4]
[327877784,1716574243991,-553.03,0.00025205,4]
[327877785,1716574244001,-1250.38,0.00025205,4]
[327877786,1716574244011,-504.09,0.00025205,4]
[327877787,1716574244021,-500.0,0.00025205,4]
[327877788,1716574244032,-500.0,0.00025205,4]
[327877789,1716574244042,-626.0,0.00025205,4]
[327877790,1716574244052,-500.0,0.00025205,4]
[327877791,1716574244062,-839.12,0.00025205,4]
[327877792,1716574244071,-4212.77,0.00025205,4]
[327877793,1716574244081,-500.0,0.00025205,4]
[327877794,1716574244091,-500.0,0.00025205,4]
[327877795,1716574244101,-500.0,0.00025205,4]
[327877796,1716574244110,-613.44,0.00025205,4]
[327877797,1716574244120,-4510.73,0.00025205,4]
[327877801,1716574244129,-1401.54,0.00025205,4]
[327877804,1716574244140,-500.0,0.00025205,4]
[327877806,1716574244149,-500.0,0.00025205,4]
[327877809,1716574244159,-500.0,0.00025205,4]
[327877814,1716574244169,-2195.32,0.00025478,13]
[327877816,1716574244179,-250.0,0.00025479,5]
[327877819,1716574244189,-500.0,0.00025479,5]
[327877820,1716574244199,-512.42,0.00025479,5]
[327877821,1716574244209,-520.56,0.00025479,5]
[327877822,1716574244219,-500.0,0.00025479,5]
[327877823,1716574244229,-500.0,0.00025479,5]
[327877824,1716574244239,-500.0,0.00025479,5]
[327877825,1716574244250,-500.0,0.00025479,5]
[327877826,1716574244262,-500.0,0.00025479,5]
[327877827,1716574244271,-500.0,0.00025479,5]
[327877828,1716574244281,-500.0,0.00025479,5]
[327877829,1716574244291,-691.71,0.00025479,5]
[327877830,1716574244301,-500.0,0.00025479,5]
[327877831,1716574244310,-500.0,0.00025479,5]
[327877832,1716574244321,-500.0,0.00025479,5]
[327877833,1716574244331,-587.64,0.00025479,5]
[327877834,1716574244340,-500.0,0.00025479,5]
[327877835,1716574244351,-500.0,0.00025479,5]
[327877836,1716574244362,-377.94362551,0.00025479,5]
[327877837,1716574244372,-500.0,0.00025479,5]
[327877838,1716574244381,-634.77,0.00025479,5]
[327877839,1716574244390,-500.0,0.00025479,5]
[327877840,1716574244399,-500.0,0.00025479,5]
[327877841,1716574244408,-500.0,0.00025479,5]
[327877842,1716574244418,-500.0,0.00025479,5]
[327877843,1716574244427,-661.81,0.00025479,5]
[327877845,1716574244435,-200.22,0.00025479,5]
[327877848,1716574244445,-500.0,0.00025479,5]
[327877851,1716574244455,-500.0,0.00025479,5]
[327877853,1716574244465,-500.0,0.00025479,5]
[327877856,1716574244475,-2846.28,0.00025479,5]
[327877859,1716574244484,-808.03,0.00025479,5]
[327877861,1716574244493,-3577.07,0.00025479,5]
[327877863,1716574244502,-500.0,0.00025479,5]
[327877865,1716574244512,-500.0,0.00025479,5]
[327877866,1716574244521,-506.88,0.00025479,5]
[327877868,1716574244531,-1250.13,0.00025479,5]
[327877870,1716574244541,-500.0,0.00025479,5]
[327877872,1716574244552,-500.0,0.00025479,5]
[327877874,1716574244561,-549.44,0.00025479,5]
[327877875,1716574244571,-553.03,0.00025479,5]
[327877877,1716574244580,-1250.38,0.00025479,5]
[327877879,1716574244590,-504.09,0.00025479,5]
[327877881,1716574244599,-500.0,0.00025479,5]
[327877883,1716574244609,-500.0,0.00025479,5]
[327877884,1716574244618,-626.0,0.00025479,5]
[327877886,1716574244627,-500.0,0.00025479,5]
[327877888,1716574244636,-839.12,0.00025479,5]
[327877890,1716574244646,-4212.77,0.00025479,5]